[Event "Titled Tuesday Blitz May 2 Late 2023"]
[White "Lopez Perdomo, Juan David"]
[Black "Sailer, Mike"]
[WhiteFideId "4405137"]
[BlackFideId "2012901"]
[WhiteElo "1965"]
[BlackElo "2109"]
[Result "0-1"]
[Round "10"]
[TimeControl "180+2"]
[Date "2023.05.02"]
[WhiteClock "0:02:07"]
[BlackClock "0:01:20"]

1. d4 {[%clk 0:02:59]}  d5 {[%clk 0:02:51]} 2. c4 {[%clk 0:02:58]}  Bf5 {[%clk 0:02:50]} 3. cxd5 {[%clk 0:02:56]}  Bxb1 {[%clk 0:02:49]} 4. Rxb1 {[%clk 0:02:55]}  Qxd5 {[%clk 0:02:49]} 5. b3 {[%clk 0:02:54]}  Nc6 {[%clk 0:02:47]} 6. Nf3 {[%clk 0:02:54]}  O-O-O {[%clk 0:02:45]} 7. e3 {[%clk 0:02:53]}  e5 {[%clk 0:02:44]} 8. Bc4 {[%clk 0:02:52]}  Bb4+ {[%clk 0:02:44]} 9. Bd2 {[%clk 0:02:51]}  Qa5 {[%clk 0:02:42]} 10. O-O {[%clk 0:02:50]}  Bxd2 {[%clk 0:02:41]} 11. Nxd2 {[%clk 0:02:48]}  exd4 {[%clk 0:02:41]} 12. Qg4+ {[%clk 0:02:37]}  Kb8 {[%clk 0:02:30]} 13. Qxg7 {[%clk 0:02:37]}  Nge7 {[%clk 0:02:11]} 14. Bxf7 {[%clk 0:02:26]}  Qxd2 {[%clk 0:01:49]} 15. Rbd1 {[%clk 0:02:22]}  Qxa2 {[%clk 0:01:43]} 16. exd4 {[%clk 0:02:22]}  Nf5 {[%clk 0:01:37]} 17. Qf6 {[%clk 0:02:20]}  Nfxd4 {[%clk 0:01:29]} 18. b4 {[%clk 0:02:20]}  Qb2 {[%clk 0:01:24]} 19. Rb1 {[%clk 0:02:07]}  Ne2+ {[%clk 0:01:20]} 0-1


[Site "https://www.chess.com"]

[Event "Titled Tuesday Blitz May 2 Late 2023"]
[White "Mendez, Ruddy Antonio"]
[Black "Sanchez, Robert"]
[WhiteFideId "6403387"]
[BlackFideId "2034360"]
[WhiteElo "2161"]
[BlackElo "1966"]
[Result "1-0"]
[Round "10"]
[TimeControl "180+2"]
[Date "2023.05.02"]
[WhiteClock "0:01:09"]
[BlackClock "0:01:46"]

1. d4 {[%clk 0:02:26]}  Nf6 {[%clk 0:02:58]} 2. c4 {[%clk 0:02:25]}  e6 {[%clk 0:02:58]} 3. Nf3 {[%clk 0:02:25]}  Bb4+ {[%clk 0:02:59]} 4. Bd2 {[%clk 0:02:24]}  a5 {[%clk 0:02:59]} 5. g3 {[%clk 0:02:24]}  O-O {[%clk 0:02:59]} 6. Bg2 {[%clk 0:02:24]}  d5 {[%clk 0:03:00]} 7. O-O {[%clk 0:02:21]}  c6 {[%clk 0:03:00]} 8. Qc2 {[%clk 0:02:15]}  Nbd7 {[%clk 0:02:59]} 9. a3 {[%clk 0:02:11]}  Bxd2 {[%clk 0:02:59]} 10. Nbxd2 {[%clk 0:02:12]}  Re8 {[%clk 0:02:59]} 11. e4 {[%clk 0:02:12]}  dxc4 {[%clk 0:02:59]} 12. Nxc4 {[%clk 0:02:11]}  Nf8 {[%clk 0:02:55]} 13. Rfd1 {[%clk 0:02:10]}  Ng6 {[%clk 0:02:55]} 14. Rac1 {[%clk 0:02:07]}  Qc7 {[%clk 0:02:53]} 15. e5 {[%clk 0:02:05]}  Nd5 {[%clk 0:02:53]} 16. Nd6 {[%clk 0:02:00]}  Rf8 {[%clk 0:02:54]} 17. Nd2 {[%clk 0:01:56]}  f6 {[%clk 0:02:52]} 18. f4 {[%clk 0:01:52]}  Qb6 {[%clk 0:02:47]} 19. N2c4 {[%clk 0:01:51]}  Qa7 {[%clk 0:02:45]} 20. a4 {[%clk 0:01:47]}  fxe5 {[%clk 0:02:43]} 21. fxe5 {[%clk 0:01:44]}  Nxe5 {[%clk 0:02:34]} 22. Nxe5 {[%clk 0:01:43]}  Ne3 {[%clk 0:02:35]} 23. Qc5 {[%clk 0:01:37]}  Nxd1 {[%clk 0:02:33]} 24. Qxa7 {[%clk 0:01:36]}  Rxa7 {[%clk 0:02:34]} 25. Rxd1 {[%clk 0:01:35]}  Rd8 {[%clk 0:02:31]} 26. Nxc8 {[%clk 0:01:33]}  Rxc8 {[%clk 0:02:31]} 27. Bh3 {[%clk 0:01:33]}  Re8 {[%clk 0:02:30]} 28. Rf1 {[%clk 0:01:33]}  Re7 {[%clk 0:02:27]} 29. Rc1 {[%clk 0:01:28]}  g5 {[%clk 0:02:23]} 30. Bg2 {[%clk 0:01:26]}  Kg7 {[%clk 0:02:23]} 31. Kf2 {[%clk 0:01:24]}  Ra6 {[%clk 0:02:21]} 32. Ke3 {[%clk 0:01:23]}  Rb6 {[%clk 0:02:22]} 33. Rc2 {[%clk 0:01:23]}  Rb4 {[%clk 0:02:20]} 34. Bxc6 {[%clk 0:01:19]}  bxc6 {[%clk 0:02:18]} 35. Nxc6 {[%clk 0:01:19]}  Rb3+ {[%clk 0:02:19]} 36. Ke4 {[%clk 0:01:18]}  Rc7 {[%clk 0:02:17]} 37. Ke5 {[%clk 0:01:17]}  Kg6 {[%clk 0:02:06]} 38. Kd6 {[%clk 0:01:15]}  Rcb7 {[%clk 0:02:00]} 39. Nxa5 {[%clk 0:01:11]}  Rxb2 {[%clk 0:01:59]} 40. Rxb2 {[%clk 0:01:10]}  Rxb2 {[%clk 0:01:59]} 41. Kxe6 {[%clk 0:01:11]}  Rxh2 {[%clk 0:01:59]} 42. d5 {[%clk 0:01:11]}  Ra2 {[%clk 0:01:59]} 43. d6 {[%clk 0:01:11]}  Rxa4 {[%clk 0:01:58]} 44. Nc6 {[%clk 0:01:11]}  h5 {[%clk 0:01:52]} 45. d7 {[%clk 0:01:11]}  Ra8 {[%clk 0:01:51]} 46. Ne7+ {[%clk 0:01:10]}  Kh6 {[%clk 0:01:48]} 47. Nc8 {[%clk 0:01:11]}  Ra6+ {[%clk 0:01:47]} 48. Kd5 {[%clk 0:01:10]}  Ra5+ {[%clk 0:01:46]} 49. Kc6 {[%clk 0:01:10]}  Ra6+ {[%clk 0:01:46]} 50. Kb7 {[%clk 0:01:09]} 1-0


[Site "https://www.chess.com"]

[Event "Titled Tuesday Blitz May 2 Late 2023"]
[White "Caruana, Fabiano"]
[Black "Suleymanli, Aydin"]
[WhiteFideId "2020009"]
[BlackFideId "13413937"]
[WhiteElo "2837"]
[BlackElo "2559"]
[Result "0-1"]
[Round "11"]
[TimeControl "180+2"]
[Date "2023.05.02"]
[WhiteClock "0:00:08"]
[BlackClock "0:00:02"]

1. e4 {[%clk 0:03:00]}  e5 {[%clk 0:03:00]} 2. Nf3 {[%clk 0:03:01]}  Nc6 {[%clk 0:03:00]} 3. Bb5 {[%clk 0:03:00]}  a6 {[%clk 0:03:01]} 4. Ba4 {[%clk 0:03:01]}  Nf6 {[%clk 0:03:01]} 5. O-O {[%clk 0:03:01]}  Be7 {[%clk 0:03:02]} 6. Re1 {[%clk 0:03:01]}  b5 {[%clk 0:03:02]} 7. Bb3 {[%clk 0:03:01]}  O-O {[%clk 0:03:02]} 8. a4 {[%clk 0:03:02]}  b4 {[%clk 0:03:02]} 9. a5 {[%clk 0:03:02]}  Bb7 {[%clk 0:02:40]} 10. d3 {[%clk 0:03:00]}  Bc5 {[%clk 0:02:39]} 11. h3 {[%clk 0:02:56]}  d5 {[%clk 0:02:34]} 12. Nbd2 {[%clk 0:02:43]}  dxe4 {[%clk 0:02:22]} 13. dxe4 {[%clk 0:02:41]}  Nd4 {[%clk 0:01:58]} 14. Bc4 {[%clk 0:02:21]}  Nxf3+ {[%clk 0:01:34]} 15. Qxf3 {[%clk 0:02:22]}  Kh8 {[%clk 0:01:32]} 16. Nb3 {[%clk 0:02:17]}  Qd6 {[%clk 0:01:07]} 17. Bg5 {[%clk 0:01:45]}  Nxe4 {[%clk 0:00:49]} 18. Rxe4 {[%clk 0:01:43]}  f5 {[%clk 0:00:49]} 19. Nxc5 {[%clk 0:01:43]}  Qxc5 {[%clk 0:00:48]} 20. Qe3 {[%clk 0:01:42]}  Qc6 {[%clk 0:00:48]} 21. Be7 {[%clk 0:01:11]}  Rfe8 {[%clk 0:00:39]} 22. Bxb4 {[%clk 0:01:10]}  f4 {[%clk 0:00:14]} 23. Qe2 {[%clk 0:00:56]}  Qxe4 {[%clk 0:00:14]} 24. Qxe4 {[%clk 0:00:51]}  Bxe4 {[%clk 0:00:15]} 25. Rc1 {[%clk 0:00:51]}  Bb7 {[%clk 0:00:14]} 26. Bc3 {[%clk 0:00:50]}  Rad8 {[%clk 0:00:13]} 27. f3 {[%clk 0:00:37]}  e4 {[%clk 0:00:11]} 28. fxe4 {[%clk 0:00:38]}  Rxe4 {[%clk 0:00:11]} 29. Bd3 {[%clk 0:00:37]}  Re3 {[%clk 0:00:12]} 30. Kf2 {[%clk 0:00:38]}  Rde8 {[%clk 0:00:07]} 31. Rd1 {[%clk 0:00:30]}  f3 {[%clk 0:00:05]} 32. g3 {[%clk 0:00:30]}  h6 {[%clk 0:00:04]} 33. g4 {[%clk 0:00:20]}  R3e7 {[%clk 0:00:03]} 34. Kg3 {[%clk 0:00:18]}  Rf8 {[%clk 0:00:02]} 35. Kf2 {[%clk 0:00:17]}  Rfe8 {[%clk 0:00:02]} 36. h4 {[%clk 0:00:18]}  c5 {[%clk 0:00:03]} 37. g5 {[%clk 0:00:18]}  h5 {[%clk 0:00:03]} 38. g6 {[%clk 0:00:17]}  Rd8 {[%clk 0:00:03]} 39. Rg1 {[%clk 0:00:15]}  Rd5 {[%clk 0:00:03]} 40. Bc4 {[%clk 0:00:14]}  Rf5 {[%clk 0:00:03]} 41. Rd1 {[%clk 0:00:14]}  Re2+ {[%clk 0:00:03]} 42. Kg3 {[%clk 0:00:08]}  Rg2+ {[%clk 0:00:03]} 43. Kh3 {[%clk 0:00:08]}  Rd5 {[%clk 0:00:02]} 0-1


[Site "https://www.chess.com"]

[Event "Titled Tuesday Blitz May 2 Late 2023"]
[White "Firouzja, Alireza"]
[Black "Grischuk, Alexander"]
[WhiteFideId "12573981"]
[BlackFideId "4126025"]
[WhiteElo "2904"]
[BlackElo "2727"]
[Result "0-1"]
[Round "11"]
[TimeControl "180+2"]
[Date "2023.05.02"]
[WhiteClock "0:00:02"]
[BlackClock "0:00:03"]

1. d4 {[%clk 0:03:00]}  Nf6 {[%clk 0:02:59]} 2. Nc3 {[%clk 0:03:00]}  d5 {[%clk 0:02:59]} 3. Bf4 {[%clk 0:03:00]}  g6 {[%clk 0:02:59]} 4. h4 {[%clk 0:02:59]}  Bg7 {[%clk 0:02:58]} 5. e3 {[%clk 0:03:00]}  h5 {[%clk 0:02:56]} 6. Bd3 {[%clk 0:02:56]}  O-O {[%clk 0:02:55]} 7. Nf3 {[%clk 0:02:54]}  c5 {[%clk 0:02:53]} 8. Ne5 {[%clk 0:02:52]}  cxd4 {[%clk 0:02:34]} 9. exd4 {[%clk 0:02:51]}  Nc6 {[%clk 0:02:34]} 10. Nxc6 {[%clk 0:02:46]}  bxc6 {[%clk 0:02:35]} 11. Qd2 {[%clk 0:02:47]}  Qb6 {[%clk 0:02:31]} 12. Be5 {[%clk 0:02:46]}  Qxb2 {[%clk 0:02:13]} 13. Rb1 {[%clk 0:02:45]}  Qa3 {[%clk 0:02:13]} 14. O-O {[%clk 0:02:44]}  Ng4 {[%clk 0:01:56]} 15. Rb3 {[%clk 0:02:35]}  Qa5 {[%clk 0:01:55]} 16. Bxg7 {[%clk 0:02:36]}  Kxg7 {[%clk 0:01:55]} 17. f3 {[%clk 0:02:37]}  Nh6 {[%clk 0:01:50]} 18. Re1 {[%clk 0:02:38]}  Qc7 {[%clk 0:01:49]} 19. Qg5 {[%clk 0:02:30]}  Re8 {[%clk 0:01:34]} 20. Ne2 {[%clk 0:02:15]}  Bf5 {[%clk 0:01:25]} 21. Nf4 {[%clk 0:02:09]}  Kh7 {[%clk 0:00:57]} 22. Reb1 {[%clk 0:01:00]}  Bxd3 {[%clk 0:00:48]} 23. Nxd3 {[%clk 0:00:54]}  f6 {[%clk 0:00:40]} 24. Qd2 {[%clk 0:00:47]}  Nf5 {[%clk 0:00:36]} 25. Nf4 {[%clk 0:00:46]}  Rab8 {[%clk 0:00:33]} 26. Kf2 {[%clk 0:00:21]}  Rxb3 {[%clk 0:00:28]} 27. Rxb3 {[%clk 0:00:21]}  e5 {[%clk 0:00:25]} 28. dxe5 {[%clk 0:00:20]}  Qxe5 {[%clk 0:00:23]} 29. Ne2 {[%clk 0:00:14]}  Qxe2+ {[%clk 0:00:09]} 30. Qxe2 {[%clk 0:00:14]}  Rxe2+ {[%clk 0:00:10]} 31. Kxe2 {[%clk 0:00:14]}  Nd4+ {[%clk 0:00:10]} 32. Kd3 {[%clk 0:00:15]}  Nxb3 {[%clk 0:00:11]} 33. axb3 {[%clk 0:00:16]}  c5 {[%clk 0:00:12]} 34. c4 {[%clk 0:00:16]}  d4 {[%clk 0:00:12]} 35. b4 {[%clk 0:00:16]}  Kg7 {[%clk 0:00:08]} 36. bxc5 {[%clk 0:00:16]}  Kf7 {[%clk 0:00:08]} 37. Kxd4 {[%clk 0:00:15]}  Ke6 {[%clk 0:00:08]} 38. g4 {[%clk 0:00:08]}  a6 {[%clk 0:00:05]} 39. gxh5 {[%clk 0:00:03]}  gxh5 {[%clk 0:00:06]} 40. c6 {[%clk 0:00:03]}  Kd6 {[%clk 0:00:06]} 41. c7 {[%clk 0:00:04]}  Kxc7 {[%clk 0:00:06]} 42. Kc5 {[%clk 0:00:05]}  Kb7 {[%clk 0:00:04]} 43. Kd6 {[%clk 0:00:02]}  a5 {[%clk 0:00:05]} 44. c5 {[%clk 0:00:02]}  Kc8 {[%clk 0:00:04]} 45. Kd5 {[%clk 0:00:02]}  Kc7 {[%clk 0:00:04]} 46. Kd4 {[%clk 0:00:01]}  Kc6 {[%clk 0:00:04]} 47. Kc4 {[%clk 0:00:02]}  f5 {[%clk 0:00:03]} 0-1


[Site "https://www.chess.com"]

[Event "Titled Tuesday Blitz May 2 Late 2023"]
[White "Duda, Jan-Krzysztof"]
[Black "Bilych, Olexiy"]
[WhiteFideId "1170546"]
[BlackFideId "14156504"]
[WhiteElo "2790"]
[BlackElo "2320"]
[Result "1-0"]
[Round "11"]
[TimeControl "180+2"]
[Date "2023.05.02"]
[WhiteClock "0:00:04"]
[BlackClock "0:00:04"]

1. d4 {[%clk 0:02:28]}  d5 {[%clk 0:02:59]} 2. Nf3 {[%clk 0:02:25]}  Nf6 {[%clk 0:02:59]} 3. Bf4 {[%clk 0:02:26]}  c5 {[%clk 0:02:58]} 4. e3 {[%clk 0:02:26]}  Nc6 {[%clk 0:02:59]} 5. c3 {[%clk 0:02:26]}  Qb6 {[%clk 0:02:58]} 6. Qc2 {[%clk 0:02:20]}  Bf5 {[%clk 0:02:53]} 7. dxc5 {[%clk 0:02:19]}  Bxc2 {[%clk 0:02:43]} 8. cxb6 {[%clk 0:02:19]}  Bxb1 {[%clk 0:02:39]} 9. Rxb1 {[%clk 0:02:14]}  axb6 {[%clk 0:02:39]} 10. Bb5 {[%clk 0:02:08]}  e6 {[%clk 0:02:37]} 11. a4 {[%clk 0:01:57]}  Be7 {[%clk 0:02:27]} 12. Ne5 {[%clk 0:01:42]}  Rc8 {[%clk 0:02:06]} 13. g4 {[%clk 0:01:22]}  Ne4 {[%clk 0:01:40]} 14. Nf3 {[%clk 0:00:37]}  Bd6 {[%clk 0:01:22]} 15. Bg3 {[%clk 0:00:37]}  Ke7 {[%clk 0:01:12]} 16. Ke2 {[%clk 0:00:33]}  Na5 {[%clk 0:01:03]} 17. Bd3 {[%clk 0:00:18]}  Nf6 {[%clk 0:00:34]} 18. Bh4 {[%clk 0:00:13]}  h6 {[%clk 0:00:32]} 19. Bxf6+ {[%clk 0:00:13]}  Kxf6 {[%clk 0:00:31]} 20. Rhd1 {[%clk 0:00:12]}  Rhd8 {[%clk 0:00:29]} 21. h4 {[%clk 0:00:10]}  g6 {[%clk 0:00:27]} 22. Nd2 {[%clk 0:00:10]}  Ke7 {[%clk 0:00:25]} 23. Rh1 {[%clk 0:00:09]}  Nc6 {[%clk 0:00:25]} 24. Bb5 {[%clk 0:00:08]}  Ne5 {[%clk 0:00:24]} 25. f3 {[%clk 0:00:08]}  Kf6 {[%clk 0:00:16]} 26. Rbg1 {[%clk 0:00:08]}  g5 {[%clk 0:00:14]} 27. hxg5+ {[%clk 0:00:07]}  hxg5 {[%clk 0:00:15]} 28. Rh6+ {[%clk 0:00:06]}  Kg7 {[%clk 0:00:13]} 29. Rh5 {[%clk 0:00:06]}  Be7 {[%clk 0:00:08]} 30. f4 {[%clk 0:00:03]}  gxf4 {[%clk 0:00:08]} 31. exf4 {[%clk 0:00:04]}  Ng6 {[%clk 0:00:09]} 32. Kf3 {[%clk 0:00:04]}  d4 {[%clk 0:00:08]} 33. Ne4 {[%clk 0:00:04]}  dxc3 {[%clk 0:00:08]} 34. bxc3 {[%clk 0:00:04]}  Rh8 {[%clk 0:00:05]} 35. f5 {[%clk 0:00:03]}  Ne5+ {[%clk 0:00:04]} 36. Kf4 {[%clk 0:00:03]}  f6 {[%clk 0:00:03]} 37. fxe6 {[%clk 0:00:03]}  Ng6+ {[%clk 0:00:03]} 38. Kf3 {[%clk 0:00:03]}  Rcd8 {[%clk 0:00:03]} 39. Rxh8 {[%clk 0:00:03]}  Kxh8 {[%clk 0:00:03]} 40. Bd7 {[%clk 0:00:02]}  Ne5+ {[%clk 0:00:02]} 41. Kf4 {[%clk 0:00:03]}  Nxd7 {[%clk 0:00:03]} 42. exd7 {[%clk 0:00:04]}  Rxd7 {[%clk 0:00:04]} 43. Kf5 {[%clk 0:00:04]}  Kg7 {[%clk 0:00:04]} 44. Ke6 {[%clk 0:00:05]}  Rc7 {[%clk 0:00:03]} 45. Rb1 {[%clk 0:00:05]}  Rc4 {[%clk 0:00:02]} 46. Kd5 {[%clk 0:00:03]}  Rxa4 {[%clk 0:00:02]} 47. Rxb6 {[%clk 0:00:04]}  Ra5+ {[%clk 0:00:01]} 48. Kd4 {[%clk 0:00:03]}  Bd8 {[%clk 0:00:01]} 49. Rxb7+ {[%clk 0:00:03]}  Kg6 {[%clk 0:00:01]} 50. Rb8 {[%clk 0:00:02]}  Ra4+ {[%clk 0:00:02]} 51. c4 {[%clk 0:00:02]}  Bc7 {[%clk 0:00:03]} 52. Rg8+ {[%clk 0:00:03]}  Kf7 {[%clk 0:00:03]} 53. Rc8 {[%clk 0:00:03]}  Be5+ {[%clk 0:00:04]} 54. Kd5 {[%clk 0:00:04]}  Ra3 {[%clk 0:00:04]} 55. c5 {[%clk 0:00:03]}  Rd3+ {[%clk 0:00:05]} 56. Kc6 {[%clk 0:00:04]}  Rd4 {[%clk 0:00:06]} 57. Nd6+ {[%clk 0:00:04]}  Ke6 {[%clk 0:00:04]} 58. Re8# {[%clk 0:00:04]} 1-0


[Site "https://www.chess.com"]

[Event "Titled Tuesday Blitz May 2 Late 2023"]
[White "Ter-Sahakyan, Samvel"]
[Black "Naroditsky, Daniel"]
[WhiteFideId "13302531"]
[BlackFideId "2026961"]
[WhiteElo "2566"]
[BlackElo "2633"]
[Result "0-1"]
[Round "11"]
[TimeControl "180+2"]
[Date "2023.05.02"]
[WhiteClock "0:00:01"]
[BlackClock "0:00:04"]

1. d4 {[%clk 0:02:58]}  Nf6 {[%clk 0:03:00]} 2. Nf3 {[%clk 0:02:58]}  g6 {[%clk 0:03:00]} 3. c4 {[%clk 0:02:54]}  Bg7 {[%clk 0:03:00]} 4. Nc3 {[%clk 0:02:54]}  O-O {[%clk 0:03:01]} 5. e4 {[%clk 0:02:54]}  d6 {[%clk 0:03:02]} 6. Be2 {[%clk 0:02:55]}  e5 {[%clk 0:03:03]} 7. O-O {[%clk 0:02:54]}  exd4 {[%clk 0:03:02]} 8. Nxd4 {[%clk 0:02:54]}  Re8 {[%clk 0:03:03]} 9. f3 {[%clk 0:02:53]}  c6 {[%clk 0:03:04]} 10. Kh1 {[%clk 0:02:40]}  Nbd7 {[%clk 0:03:04]} 11. Be3 {[%clk 0:02:35]}  Nb6 {[%clk 0:02:42]} 12. Bg5 {[%clk 0:02:26]}  h6 {[%clk 0:02:37]} 13. Bh4 {[%clk 0:02:26]}  g5 {[%clk 0:02:34]} 14. Bf2 {[%clk 0:02:26]}  Nh5 {[%clk 0:02:34]} 15. Re1 {[%clk 0:02:19]}  Nf4 {[%clk 0:02:34]} 16. Bf1 {[%clk 0:02:19]}  Qf6 {[%clk 0:02:35]} 17. Qd2 {[%clk 0:02:08]}  Be6 {[%clk 0:02:16]} 18. b3 {[%clk 0:01:55]}  Rad8 {[%clk 0:02:14]} 19. Rad1 {[%clk 0:01:54]}  Ng6 {[%clk 0:02:03]} 20. Nce2 {[%clk 0:01:51]}  d5 {[%clk 0:01:53]} 21. exd5 {[%clk 0:01:49]}  cxd5 {[%clk 0:01:53]} 22. c5 {[%clk 0:01:49]}  Nd7 {[%clk 0:01:53]} 23. Ng3 {[%clk 0:01:47]}  Nf4 {[%clk 0:01:52]} 24. b4 {[%clk 0:01:44]}  Ne5 {[%clk 0:01:48]} 25. Nb5 {[%clk 0:01:38]}  Nc4 {[%clk 0:01:36]} 26. Qc1 {[%clk 0:01:34]}  a6 {[%clk 0:01:26]} 27. Bd4 {[%clk 0:01:30]}  Qg6 {[%clk 0:01:21]} 28. Bxg7 {[%clk 0:01:18]}  Qxg7 {[%clk 0:01:08]} 29. Nc7 {[%clk 0:01:17]}  Rf8 {[%clk 0:01:05]} 30. Ne2 {[%clk 0:00:51]}  Nxe2 {[%clk 0:00:48]} 31. Bxe2 {[%clk 0:00:51]}  Ne5 {[%clk 0:00:43]} 32. f4 {[%clk 0:00:42]}  gxf4 {[%clk 0:00:40]} 33. Qxf4 {[%clk 0:00:43]}  Ng6 {[%clk 0:00:40]} 34. Qg3 {[%clk 0:00:41]}  Ne7 {[%clk 0:00:28]} 35. Qxg7+ {[%clk 0:00:39]}  Kxg7 {[%clk 0:00:29]} 36. Bd3 {[%clk 0:00:38]}  Kf6 {[%clk 0:00:28]} 37. Rf1+ {[%clk 0:00:35]}  Ke5 {[%clk 0:00:16]} 38. Rde1+ {[%clk 0:00:34]}  Kd4 {[%clk 0:00:16]} 39. Bb1 {[%clk 0:00:29]}  Kc3 {[%clk 0:00:17]} 40. a3 {[%clk 0:00:09]}  d4 {[%clk 0:00:17]} 41. Rf3+ {[%clk 0:00:06]}  d3 {[%clk 0:00:10]} 42. Ree3 {[%clk 0:00:07]}  Kb2 {[%clk 0:00:03]} 43. Bxd3 {[%clk 0:00:06]}  Nd5 {[%clk 0:00:02]} 44. Nxd5 {[%clk 0:00:06]}  Bxd5 {[%clk 0:00:03]} 45. Rf2+ {[%clk 0:00:06]}  Kxa3 {[%clk 0:00:03]} 46. b5 {[%clk 0:00:04]}  axb5 {[%clk 0:00:03]} 47. Bxb5+ {[%clk 0:00:04]}  Kb4 {[%clk 0:00:04]} 48. Be2 {[%clk 0:00:03]}  Kxc5 {[%clk 0:00:05]} 49. h3 {[%clk 0:00:03]}  Bc6 {[%clk 0:00:04]} 50. Kh2 {[%clk 0:00:03]}  Rd6 {[%clk 0:00:03]} 51. Rc3+ {[%clk 0:00:03]}  Kb6 {[%clk 0:00:03]} 52. Bh5 {[%clk 0:00:03]}  f6 {[%clk 0:00:04]} 53. Rg3 {[%clk 0:00:02]}  Rd5 {[%clk 0:00:03]} 54. Bf3 {[%clk 0:00:01]}  Rg5 {[%clk 0:00:03]} 55. Rb2+ {[%clk 0:00:01]}  Kc7 {[%clk 0:00:04]} 56. Rg4 {[%clk 0:00:01]}  Rxg4 {[%clk 0:00:04]} 57. Bxg4 {[%clk 0:00:01]}  Rd8 {[%clk 0:00:04]} 58. Kg3 {[%clk 0:00:01]}  Rd4 {[%clk 0:00:05]} 59. Rf2 {[%clk 0:00:01]}  Rd6 {[%clk 0:00:05]} 60. Kh4 {[%clk 0:00:01]}  b5 {[%clk 0:00:05]} 61. Bf5 {[%clk 0:00:01]}  Be8 {[%clk 0:00:04]} 0-1


[Site "https://www.chess.com"]

[Event "Titled Tuesday Blitz May 2 Late 2023"]
[White "Kamsky, Gata"]
[Black "Sarana, Alexey"]
[WhiteFideId "2000024"]
[BlackFideId "24133795"]
[WhiteElo "2660"]
[BlackElo "2714"]
[Result "0-1"]
[Round "11"]
[TimeControl "180+2"]
[Date "2023.05.02"]
[WhiteClock "0:00:04"]
[BlackClock "0:00:12"]

1. d4 {[%clk 0:03:00]}  Nf6 {[%clk 0:02:59]} 2. Nf3 {[%clk 0:03:00]}  d5 {[%clk 0:02:59]} 3. c4 {[%clk 0:02:57]}  e6 {[%clk 0:02:59]} 4. g3 {[%clk 0:02:58]}  Bb4+ {[%clk 0:02:57]} 5. Bd2 {[%clk 0:02:56]}  Be7 {[%clk 0:02:58]} 6. Bg2 {[%clk 0:02:57]}  c6 {[%clk 0:02:58]} 7. O-O {[%clk 0:02:56]}  b6 {[%clk 0:02:59]} 8. Qc2 {[%clk 0:02:56]}  Ba6 {[%clk 0:02:59]} 9. b3 {[%clk 0:02:39]}  Nbd7 {[%clk 0:02:59]} 10. Rd1 {[%clk 0:02:29]}  Rc8 {[%clk 0:02:58]} 11. Bf4 {[%clk 0:02:08]}  c5 {[%clk 0:02:53]} 12. dxc5 {[%clk 0:02:05]}  Bxc5 {[%clk 0:02:54]} 13. Nc3 {[%clk 0:01:11]}  dxc4 {[%clk 0:02:51]} 14. bxc4 {[%clk 0:01:09]}  Bxc4 {[%clk 0:02:50]} 15. Ne5 {[%clk 0:01:01]}  b5 {[%clk 0:02:39]} 16. Nxc4 {[%clk 0:00:54]}  bxc4 {[%clk 0:02:38]} 17. Ne4 {[%clk 0:00:54]}  Nxe4 {[%clk 0:02:24]} 18. Bxe4 {[%clk 0:00:53]}  Qa5 {[%clk 0:02:16]} 19. Kg2 {[%clk 0:00:40]}  Nf6 {[%clk 0:02:14]} 20. Qxc4 {[%clk 0:00:36]}  O-O {[%clk 0:02:13]} 21. Qd3 {[%clk 0:00:35]}  Bxf2 {[%clk 0:01:47]} 22. Kxf2 {[%clk 0:00:27]}  Rc3 {[%clk 0:01:47]} 23. Qb1 {[%clk 0:00:18]}  Qh5 {[%clk 0:01:37]} 24. Kg1 {[%clk 0:00:18]}  Ng4 {[%clk 0:00:59]} 25. h4 {[%clk 0:00:17]}  e5 {[%clk 0:01:00]} 26. Qb2 {[%clk 0:00:14]}  Rc4 {[%clk 0:00:52]} 27. Bd5 {[%clk 0:00:10]}  exf4 {[%clk 0:00:20]} 28. Bxc4 {[%clk 0:00:09]}  fxg3 {[%clk 0:00:21]} 29. e3 {[%clk 0:00:05]}  Nxe3 {[%clk 0:00:18]} 30. Rd4 {[%clk 0:00:04]}  Qc5 {[%clk 0:00:12]} 0-1


[Site "https://www.chess.com"]

[Event "Titled Tuesday Blitz May 2 Late 2023"]
[White "Grigoriants, Sergey"]
[Black "Bortnyk, Olexandr"]
[WhiteFideId "4130804"]
[BlackFideId "14120828"]
[WhiteElo "2502"]
[BlackElo "2734"]
[Result "1-0"]
[Round "11"]
[TimeControl "180+2"]
[Date "2023.05.02"]
[WhiteClock "0:01:15"]
[BlackClock "0:02:38"]

1. d4 {[%clk 0:03:00]}  d6 {[%clk 0:03:00]} 2. e4 {[%clk 0:02:59]}  Nf6 {[%clk 0:03:00]} 3. f3 {[%clk 0:02:58]}  e5 {[%clk 0:03:00]} 4. dxe5 {[%clk 0:02:58]}  dxe5 {[%clk 0:03:01]} 5. Qxd8+ {[%clk 0:02:58]}  Kxd8 {[%clk 0:03:02]} 6. Bc4 {[%clk 0:02:58]}  Be6 {[%clk 0:03:02]} 7. Bxe6 {[%clk 0:02:58]}  fxe6 {[%clk 0:03:03]} 8. Nh3 {[%clk 0:02:55]}  Bc5 {[%clk 0:03:04]} 9. Nf2 {[%clk 0:02:55]}  Bxf2+ {[%clk 0:03:03]} 10. Kxf2 {[%clk 0:02:55]}  Rf8 {[%clk 0:03:04]} 11. Ke2 {[%clk 0:02:54]}  Ke7 {[%clk 0:03:04]} 12. Be3 {[%clk 0:02:51]}  b6 {[%clk 0:03:04]} 13. Nd2 {[%clk 0:02:50]}  Nc6 {[%clk 0:03:05]} 14. c3 {[%clk 0:02:50]}  Rad8 {[%clk 0:03:05]} 15. b4 {[%clk 0:02:48]}  a6 {[%clk 0:03:04]} 16. a4 {[%clk 0:02:47]}  Nd7 {[%clk 0:03:04]} 17. Nc4 {[%clk 0:02:39]}  h6 {[%clk 0:03:03]} 18. b5 {[%clk 0:02:31]}  Ncb8 {[%clk 0:03:04]} 19. Rhb1 {[%clk 0:02:27]}  a5 {[%clk 0:03:04]} 20. Rd1 {[%clk 0:02:24]}  Kf6 {[%clk 0:03:04]} 21. Rd2 {[%clk 0:02:21]}  Rfe8 {[%clk 0:03:01]} 22. Rad1 {[%clk 0:02:21]}  g5 {[%clk 0:03:00]} 23. h4 {[%clk 0:02:13]}  gxh4 {[%clk 0:02:59]} 24. Bf2 {[%clk 0:02:13]}  Kg5 {[%clk 0:02:55]} 25. Nxe5 {[%clk 0:02:08]}  Re7 {[%clk 0:02:51]} 26. Nc6 {[%clk 0:02:05]}  Rde8 {[%clk 0:02:48]} 27. Nxe7 {[%clk 0:02:01]}  Rxe7 {[%clk 0:02:49]} 28. Rh1 {[%clk 0:01:59]}  Rf7 {[%clk 0:02:49]} 29. Rxh4 {[%clk 0:01:50]}  h5 {[%clk 0:02:49]} 30. Rh1 {[%clk 0:01:47]}  Ne5 {[%clk 0:02:49]} 31. Rd8 {[%clk 0:01:42]}  Nbd7 {[%clk 0:02:49]} 32. Rg8+ {[%clk 0:01:36]}  Ng6 {[%clk 0:02:49]} 33. Be3+ {[%clk 0:01:34]}  Kf6 {[%clk 0:02:49]} 34. Rxh5 {[%clk 0:01:34]}  Ngf8 {[%clk 0:02:48]} 35. f4 {[%clk 0:01:30]}  Ke7 {[%clk 0:02:46]} 36. Rhg5 {[%clk 0:01:25]}  Nh7 {[%clk 0:02:45]} 37. R5g7 {[%clk 0:01:24]}  Nhf6 {[%clk 0:02:45]} 38. Rxf7+ {[%clk 0:01:21]}  Kxf7 {[%clk 0:02:46]} 39. Rc8 {[%clk 0:01:22]}  Nxe4 {[%clk 0:02:47]} 40. Rxc7 {[%clk 0:01:21]}  Ke8 {[%clk 0:02:47]} 41. Kf3 {[%clk 0:01:19]}  Nef6 {[%clk 0:02:47]} 42. g4 {[%clk 0:01:17]}  Nd5 {[%clk 0:02:47]} 43. Rc6 {[%clk 0:01:17]}  Ke7 {[%clk 0:02:44]} 44. Bd4 {[%clk 0:01:17]}  Kf7 {[%clk 0:02:38]} 45. g5 {[%clk 0:01:15]} 1-0


[Site "https://www.chess.com"]